fUSD/lending_fUSD_20240612
["ID","MTS","AMOUNT","RATE_DAILY","PERIOD"]
[329262122,1718203873326,-972.77672534,0.00027014,2]
[329262123,1718203873338,-5000.0,0.00027039,2]
[329262124,1718203873349,-151.0,0.00027052,7]
[329262125,1718203873359,-151.0,0.00027052,7]
[329262126,1718203873369,-153.946263,0.00027052,7]
[329262127,1718203873381,-158.567149,0.00027052,7]
[329262128,1718203873392,-154.12214519,0.00027058,2]
[329262129,1718203873407,-972.77672534,0.00027062,2]
[329262130,1718203873417,-151.48043344,0.00027063,2]
[329262131,1718203873428,-470.44731972,0.00027069,2]
[329262132,1718203873440,-151.36047297,0.00027078,2]
[329262133,1718203873450,-7607.28,0.0002708,2]
[329262134,1718203873462,-470.44731972,0.00027084,2]
[329262135,1718203873474,-1000.0,0.00027093,14]
[329262136,1718203873485,-155.20948984,0.00027107,2]
[329262137,1718203873496,-151.0,0.00027123,7]
[329262138,1718203873508,-151.0,0.00027123,7]
[329262139,1718203873520,-199.62427,0.00027123,7]
[329262140,1718203873532,-199.62427,0.00027123,7]
[329262141,1718203873543,-1500.0,0.00027123,30]
[329262142,1718203873554,-3457.87,0.00027123,2]
[329262143,1718203873565,-177.20787856,0.00027141,2]
[329262144,1718203873577,-201.41727774,0.00027145,2]
[329262145,1718203873589,-151.36047297,0.00027149,2]
[329262146,1718203873601,-166.65534304,0.00027151,2]
[329262147,1718203873613,-154.12214519,0.00027151,2]
[329262148,1718203873625,-207.80064736,0.00027157,2]
[329262149,1718203873636,-470.44731972,0.00027159,2]
[329262150,1718203873655,-154.12214519,0.00027163,2]
[329262151,1718203873665,-2010.60105363,0.000272,2]
[329262152,1718203873677,-1000.0,0.00027215,14]
[329262153,1718203873688,-154.12214519,0.00027218,2]
[329262154,1718203873699,-207.80064736,0.00027224,2]
[329262155,1718203873711,-25000.0,0.00027225,2]
[329262156,1718203873724,-3728.18370699,0.00027239,2]
[329262157,1718203873735,-2893.38778962,0.00027243,2]
[329262158,1718203873747,-972.77672534,0.00027245,2]
[329262159,1718203873759,-2893.38778962,0.00027247,2]
[329262160,1718203873771,-207.80064736,0.0002726,2]
[329262161,1718203873782,-152.57735206,0.00027276,2]
[329262162,1718203873793,-470.44731972,0.0002728,2]
[329262163,1718203873803,-158.32026496,0.00027295,2]
[329262164,1718203873814,-372.95920627,0.00027295,2]
[329262165,1718203873824,-260.58271532,0.00027297,2]
[329262166,1718203873834,-40690.67979521,0.000273,14]
[329262167,1718203873846,-470.44731972,0.000273,2]
[329262168,1718203873856,-177.20787856,0.00027315,2]
[329262169,1718203873869,-410.8496191,0.00027322,2]
[329262170,1718203873880,-470.44731972,0.00027334,2]
[329262171,1718203873891,-1000.0,0.00027336,14]
[329262172,1718203873905,-664.67,0.00027342,2]
[329262173,1718203873915,-166.44843202,0.00027349,2]
[329262174,1718203873926,-5000.0,0.00027355,2]
[329262175,1718203873935,-388.0,0.00027359,2]
[329262176,1718203873947,-972.77672534,0.00027365,2]
[329262177,1718203873958,-8321.29832402,0.00027367,2]
[329262178,1718203873969,-11091.89,0.0002737,2]
[329262179,1718203873981,-169.15586853,0.0002737,2]
[329262180,1718203873992,-187.75896338,0.00027374,2]
[329262181,1718203874004,-166.66666668,0.00027385,2]
[329262182,1718203874016,-154.12214519,0.00027387,2]
[329262183,1718203874026,-58000.0,0.00027387,2]
[329262184,1718203874038,-188.10968945,0.00027392,2]
[329262185,1718203874049,-58000.0,0.00027396,2]
[329262186,1718203874061,-193.242857,0.00027396,7]
[329262187,1718203874090,-193.242857,0.00027396,7]
[329262188,1718203874102,-1103.22560397,0.00027397,30]
[329262189,1718203874113,-1973.11498718,0.00027397,20]
[329262190,1718203874124,-193.54,0.00027397,2]
[329262191,1718203874135,-1500.0,0.00027397,30]
[329262192,1718203874145,-500.0,0.00027397,2]
[329262193,1718203874162,-500.0,0.00027397,2]
[329262194,1718203874173,-223.75636546,0.00027397,2]
[329262195,1718203874183,-500.0,0.00027397,2]
[329262196,1718203874194,-500.0,0.00027397,2]
[329262197,1718203874204,-500.0,0.00027397,2]
[329262198,1718203874215,-500.0,0.00027397,2]
[329262199,1718203874225,-500.0,0.00027397,2]
[329262200,1718203874236,-500.0,0.00027397,2]
[329262201,1718203874246,-500.0,0.00027397,2]
[329262202,1718203874257,-500.0,0.00027397,2]
[329262203,1718203874267,-500.0,0.00027397,2]
[329262204,1718203874278,-500.0,0.00027397,2]
[329262205,1718203874288,-500.0,0.00027397,2]
[329262206,1718203874298,-500.0,0.00027397,2]
[329262207,1718203874308,-500.0,0.00027397,2]
[329262208,1718203874319,-500.0,0.00027397,2]
[329262209,1718203874329,-500.0,0.00027397,2]
[329262210,1718203874339,-500.0,0.00027397,2]
[329262211,1718203874349,-500.0,0.00027397,2]
[329262212,1718203874360,-500.0,0.00027397,2]
[329262213,1718203874371,-500.0,0.00027397,2]
[329262214,1718203874381,-500.0,0.00027397,2]
[329262215,1718203874392,-500.0,0.00027397,2]
[329262216,1718203874404,-232.30552003,0.00027397,2]
[329262217,1718203874414,-500.0,0.00027397,2]
[329262218,1718203874425,-500.0,0.00027397,2]
[329262219,1718203874435,-500.0,0.00027397,2]
[329262220,1718203874445,-500.0,0.00027397,2]
[329262221,1718203874456,-500.0,0.00027397,2]
[329262222,1718203874466,-500.0,0.00027397,2]
[329262223,1718203874477,-500.0,0.00027397,2]
[329262224,1718203874487,-500.0,0.00027397,2]
[329262225,1718203874497,-500.0,0.00027397,2]
[329262226,1718203874508,-500.0,0.00027397,2]
[329262227,1718203874522,-500.0,0.00027397,2]
[329262228,1718203874532,-500.0,0.00027397,2]
[329262229,1718203874542,-500.0,0.00027397,2]
[329262230,1718203874553,-500.0,0.00027397,2]
[329262231,1718203874563,-500.0,0.00027397,2]
[329262232,1718203874573,-500.0,0.00027397,2]
[329262233,1718203874584,-500.0,0.00027397,2]
[329262234,1718203874594,-500.0,0.00027397,2]
[329262235,1718203874604,-151.7276677,0.00027397,2]
[329262236,1718203874615,-500.0,0.00027397,2]
[329262237,1718203874626,-500.0,0.00027397,2]
[329262238,1718203874636,-500.0,0.00027397,2]
[329262239,1718203874647,-500.0,0.00027397,2]
[329262240,1718203874658,-500.0,0.00027397,2]
[329262241,1718203874804,-500.0,0.00027397,2]
[329262242,1718203874842,-265.0,0.00027397,2]
[329262243,1718203874853,-500.0,0.00027397,2]
[329262244,1718203874864,-500.0,0.00027397,2]
[329262245,1718203874875,-500.0,0.00027397,2]
[329262246,1718203874885,-500.0,0.00027397,2]
[329262247,1718203874896,-500.0,0.00027397,2]
[329262248,1718203874907,-500.0,0.00027397,2]
[329262249,1718203874918,-500.0,0.00027397,2]
[329262250,1718203874928,-3000.0,0.00027397,2]
[329262251,1718203874939,-2252.75786056,0.00027397,2]
[329262252,1718203874949,-201.34103923,0.00027397,7]
[329262253,1718203874963,-360.0,0.00027397,6]
[329262254,1718203874979,-209.76,0.00027397,2]
[329262255,1718203874990,-151.0,0.00027397,7]
[329262256,1718203875001,-151.0,0.00027397,7]
[329262257,1718203875012,-15905.34,0.00027397,2]
[329262258,1718203875023,-334.99,0.00027397,2]
[329262259,1718203875038,-151.0,0.00027397,7]
[329262260,1718203875049,-150.0,0.00027397,2]
[329262261,1718203875060,-17888.09,0.00027397,2]
[329262262,1718203875105,-1396.4,0.00027397,10]
[329262263,1718203875115,-1397.66,0.00027397,10]
[329262264,1718203875126,-300.0,0.00027397,10]
[329262265,1718203875136,-300.0,0.00027397,10]
[329262266,1718203875150,-300.0,0.00027397,10]
[329262267,1718203875163,-300.0,0.00027397,10]
[329262268,1718203875175,-300.0,0.00027397,10]
[329262269,1718203875187,-300.0,0.00027397,10]
[329262270,1718203875197,-303.43951524,0.00027397,10]
[329262271,1718203875209,-260.44518804,0.000274,2]
[329262272,1718203875222,-609.34621308,0.000274,2]
[329262273,1718203875232,-1000.0,0.000274,2]
[329262274,1718203875243,-2485.09344287,0.000274,2]
[329262275,1718203875256,-972.77672534,0.000274,2]
[329262276,1718203875267,-150.0,0.000274,5]
[329262277,1718203875279,-150.0,0.000274,5]
[329262278,1718203875291,-2366.88109292,0.000274,2]
[329262279,1718203875302,-738.0,0.000274,2]
[329262280,1718203875312,-1074.89,0.000274,2]
[329262281,1718203875323,-152.0,0.00027405,6]
[329262282,1718203875334,-5000.0,0.00027418,2]
[329262283,1718203875345,-972.77672534,0.00027431,2]
[329262284,1718203875356,-5000.0,0.00027435,2]
[329262285,1718203875366,-158.32026496,0.00027435,2]
[329262286,1718203875377,-1029.83110827,0.0002744,2]
[329262287,1718203875387,-1500.11582007,0.0002744,2]
[329262288,1718203875400,-1000.0,0.00027458,14]
[329262289,1718203875411,-154.82327134,0.00027478,2]
[329262290,1718203875423,-304.72,0.00027479,2]
[329262291,1718203875434,-3620.61,0.00027487,2]
[329262292,1718203875445,-2893.38778962,0.00027499,2]
[329262293,1718203875456,-189.80474902,0.000275,2]
[329262294,1718203875466,-803.0,0.000275,16]
[329262295,1718203875476,-569.671918,0.000275,2]
[329262296,1718203875486,-150.0,0.000275,5]
[329262297,1718203875497,-165.4093236,0.0002751,2]
[329262298,1718203875507,-177.20787856,0.00027518,2]
[329262299,1718203875517,-193.54,0.00027534,2]
[329262300,1718203875528,-372.95920627,0.00027536,2]
[329262301,1718203875538,-1009.86,0.0002754,2]
[329262302,1718203875549,-151.0,0.00027542,2]
[329262303,1718203875560,-250.49088,0.00027542,2]
[329262304,1718203875572,-177.20787856,0.00027553,2]
[329262305,1718203875585,-154.89060015,0.00027554,2]
[329262306,1718203875597,-2506.71,0.0002756,2]
[329262307,1718203875608,-187.75896338,0.00027566,2]
[329262308,1718203875619,-1000.0,0.0002758,14]
[329262309,1718203875631,-154.12214519,0.00027584,2]
[329262310,1718203875641,-187.75896338,0.00027588,2]
[329262311,1718203875651,-2422.47072024,0.00027594,2]
[329262312,1718203875661,-5986.53849685,0.00027594,2]
[329262313,1718203875673,-2893.38778962,0.00027598,2]
[329262314,1718203875684,-2194.06002492,0.00027598,2]
[329262315,1718203875694,-2000.0,0.000276,2]
[329262316,1718203875705,-8927.83,0.000276,2]
[329262317,1718203875716,-2398.68,0.000276,2]
[329262318,1718203875729,-1800.0,0.000276,10]
[329262319,1718203875739,-174.05631097,0.00027602,2]
[329262320,1718203875751,-153.96520925,0.00027602,2]
[329262321,1718203875762,-154.82327134,0.00027606,2]
[329262322,1718203875774,-5000.0,0.00027607,2]
[329262323,1718203875785,-5000.0,0.00027614,2]
[329262324,1718203875796,-187.75896338,0.00027617,2]
[329262325,1718203875807,-372.95920627,0.00027631,2]
[329262326,1718203875817,-187.75896338,0.00027648,2]
[329262327,1718203875828,-4677.71,0.00027658,2]
[329262328,1718203875839,-177.20787856,0.00027659,2]
[329262329,1718203875850,-300.19738228,0.0002767,2]
[329262330,1718203875861,-241.0,0.0002767,15]
[329262331,1718203875871,-193.54,0.00027671,2]
[329262332,1718203875881,-1500.0,0.00027671,30]
[329262333,1718203875894,-154.12214519,0.00027675,2]
[329262334,1718203875906,-2504.51,0.00027678,2]
[329262335,1718203875916,-241.0,0.0002768,15]
[329262336,1718203875928,-187.75896338,0.00027682,2]
[329262337,1718203875939,-845.35,0.00027686,2]
[329262338,1718203875952,-1053.08,0.00027686,2]
[329262339,1718203875963,-713.19,0.00027686,2]
[329262340,1718203875975,-300.0,0.00027686,2]
[329262341,1718203875987,-150.0,0.00027686,2]
[329262342,1718203875999,-302.33,0.00027686,2]
[329262343,1718203876009,-328.49,0.00027686,2]
[329262344,1718203876020,-241.0,0.0002769,15]
[329262345,1718203876033,-187.75896338,0.00027693,2]
[329262346,1718203876046,-154.89060015,0.00027696,2]
[329262347,1718203876058,-518.68,0.00027698,7]
[329262348,1718203876083,-518.68,0.00027698,7]
[329262349,1718203876095,-518.68,0.00027698,7]
[329262350,1718203876111,-518.68,0.00027698,7]
[329262351,1718203876123,-518.68,0.00027698,7]
[329262352,1718203876135,-518.68,0.00027698,7]
[329262353,1718203876146,-518.68,0.00027698,7]
[329262354,1718203876162,-518.68,0.00027698,7]
[329262355,1718203876172,-518.68,0.00027698,7]
[329262356,1718203876182,-518.68,0.00027698,7]
[329262357,1718203876192,-518.68,0.00027698,7]
[329262358,1718203876203,-518.68,0.00027698,7]
[329262359,1718203876215,-518.68,0.00027698,7]
[329262360,1718203876225,-518.68,0.00027698,7]
[329262361,1718203876235,-518.68,0.00027698,7]
[329262362,1718203876246,-518.68,0.00027698,7]
[329262363,1718203876257,-518.68,0.00027698,7]
[329262364,1718203876286,-518.68,0.00027698,7]
[329262365,1718203876297,-518.68,0.00027698,7]
[329262366,1718203876307,-518.68,0.00027698,7]
[329262367,1718203876318,-518.68,0.00027698,7]
[329262368,1718203876329,-518.68,0.00027698,7]
[329262369,1718203876340,-518.68,0.00027698,7]
[329262370,1718203876351,-518.81601077,0.00027698,7]
[329262371,1718203876361,-300.0,0.000277,10]
[329262372,1718203876372,-151.36047297,0.00027701,2]
[329262373,1718203876382,-1000.0,0.00027702,14]
[329262374,1718203876393,-155.18985096,0.00027706,2]
[329262375,1718203876405,-972.77672534,0.00027712,2]
[329262376,1718203876416,-166.3696474,0.00027717,2]
[329262377,1718203876427,-158.32026496,0.00027746,2]
[329262378,1718203876438,-154.12214519,0.00027777,2]
[329262379,1718203876449,-152.96395665,0.00027779,2]
[329262380,1718203876460,-151.76197192,0.00027792,2]
[329262381,1718203876471,-2893.38778962,0.00027793,2]
[329262382,1718203876482,-158.32026496,0.00027795,2]
[329262383,1718203876494,-17280.73561734,0.000278,7]
[329262384,1718203876507,-300.0,0.000278,10]
[329262385,1718203876518,-193.54,0.00027808,2]
[329262386,1718203876531,-154.383437,0.00027808,7]
[329262387,1718203876542,-151.0,0.00027808,7]
[329262388,1718203876553,-1000.0,0.00027823,14]
[329262389,1718203876564,-151.0,0.00027831,7]
[329262390,1718203876577,-2893.38778962,0.00027831,2]
[329262391,1718203876588,-1413.894061,0.00027831,7]
[329262392,1718203876599,-1413.894061,0.00027831,7]
[329262393,1718203876612,-265.354225,0.00027831,7]
[329262394,1718203876623,-265.354225,0.00027831,7]
[329262395,1718203876633,-2506.71,0.0002784,2]
[329262396,1718203876644,-151.0,0.0002784,7]
[329262397,1718203876655,-154.82327134,0.00027855,2]
[329262398,1718203876666,-151.0,0.00027864,7]
[329262399,1718203876677,-151.0,0.00027864,7]
[329262400,1718203876688,-151.0,0.00027864,7]
[329262401,1718203876698,-151.0,0.00027864,7]
[329262402,1718203876710,-151.0,0.00027864,7]
[329262403,1718203876721,-151.0,0.00027864,7]
[329262404,1718203876732,-151.0,0.00027864,7]
[329262405,1718203876742,-151.0,0.00027864,7]
[329262406,1718203876752,-193.546934,0.00027864,7]
[329262407,1718203876763,-151.0,0.00027864,7]
[329262408,1718203876773,-160.69768341,0.00027881,2]
[329262409,1718203876785,-2774.55,0.00027883,2]
[329262410,1718203876796,-153.25802494,0.00027883,2]
[329262411,1718203876807,-2893.38778962,0.00027886,2]
[329262412,1718203876818,-15132.69117784,0.0002789,2]
[329262413,1718203876829,-312.470069,0.0002789,7]
[329262414,1718203876840,-151.0,0.0002789,7]
[329262415,1718203876850,-151.0,0.0002789,7]
[329262416,1718203876861,-151.0,0.0002789,7]
[329262417,1718203876872,-151.0,0.0002789,7]
[329262418,1718203876883,-151.0,0.0002789,7]
[329262419,1718203876894,-151.0,0.0002789,7]
[329262420,1718203876906,-151.0,0.0002789,7]
[329262421,1718203876916,-151.0,0.0002789,7]
[329262422,1718203876927,-151.0,0.0002789,7]
[329262423,1718203876937,-151.0,0.0002789,7]
[329262424,1718203876948,-151.0,0.0002789,7]
[329262425,1718203876961,-267.18907871,0.000279,2]
[329262426,1718203876971,-300.0,0.000279,10]
[329262427,1718203876981,-150.0,0.000279,5]
[329262428,1718203876992,-150.0,0.000279,5]
[329262429,1718203877002,-5000.0,0.00027901,2]
[329262430,1718203877013,-207.80064736,0.00027902,2]
[329262431,1718203877023,-300.0,0.00027908,2]
[329262432,1718203877033,-2893.38778962,0.00027911,2]
[329262433,1718203877044,-2510.79,0.00027932,2]
[329262434,1718203877054,-470.44731972,0.00027932,2]
[329262435,1718203877078,-372.95920627,0.0002794,2]
[329262436,1718203877089,-193.54,0.00027945,2]
[329262437,1718203877098,-1500.0,0.00027945,30]
[329262438,1718203877109,-1000.0,0.00027945,14]
[329262439,1718203877120,-207.80064736,0.00027955,2]
[329262440,1718203877131,-155.20948985,0.00027958,2]
[329262441,1718203877141,-153.39895734,0.00027962,2]
[329262442,1718203877153,-2893.38778962,0.00027972,2]
[329262443,1718203877163,-406.91762393,0.00027986,2]
[329262444,1718203877174,-207.80064736,0.00027988,2]
[329262445,1718203877184,-8683.83147832,0.0002799,2]
[329262446,1718203877194,-84064.2145345,0.00027997,6]
[329262447,1718203877504,-500.0,0.00019452,2]
[329262448,1718203877515,-500.0,0.00019452,2]
[329262449,1718203877526,-500.0,0.00019589,2]
[329262450,1718203877537,-500.0,0.00019589,2]
[329262451,1718203877547,-500.0,0.00019726,2]
[329262452,1718203877557,-500.0,0.00019726,2]
[329262453,1718203877567,-1718.9911069,0.00027997,6]
[329262454,1718203877580,-531.80188952,0.00027997,6]
[329262455,1718203877592,-1065.01364503,0.00027997,6]
[329262456,1718203877604,-40842.3915578,0.00027997,6]
[329262457,1718203877618,-17572.37653834,0.00027997,6]
[329262458,1718203877630,-730.07140233,0.00027997,6]
[329262459,1718203877642,-652.62529538,0.00027997,6]
[329262460,1718203877655,-69986.11578943,0.00027997,6]
[329262461,1718203877666,-4540.0,0.00027997,6]
[329262462,1718203877678,-2855.0616,0.00027997,6]
[329262463,1718203877691,-268.77602007,0.00027997,6]
[329262464,1718203877706,-35401.57796797,0.00027997,6]
[329262465,1718203878158,-500.0,0.00019178,2]
[329262466,1718203878169,-260.05291691,0.00019314,2]
[329262467,1718203878180,-500.0,0.00019315,2]
[329262468,1718203878190,-1347.97481886,0.00019325,2]
[329262469,1718203878300,-517.3092,0.00019178,2]
[329262470,1718203878314,-631.4308,0.00019178,2]
[329262471,1718203878328,-442.46007188,0.00019325,2]
[329262472,1718203878341,-641.74092052,0.00019325,2]
[329262473,1718203878511,-1246.89218874,0.00019325,2]
[329262474,1718203878522,-500.0,0.00019452,2]
[329262475,1718203878533,-352.44781126,0.00019589,2]
[329262479,1718203998772,-1000.0,0.00031815,30]
[329262480,1718203998808,-1000.0,0.00031815,30]
[329262481,1718203998841,-2599.0,0.00031815,120]
[329262482,1718203998873,-1000.0,0.00031815,30]
[329262483,1718203998905,-1000.0,0.00031815,30]
[329262484,1718203998938,-985.42707091,0.00031815,30]
[329262485,1718203998968,-1000.0,0.00031815,30]
[329262486,1718203998998,-1740.2441,0.00031815,30]
[329262487,1718203999025,-1624.97630536,0.00031815,30]
[329262488,1718203999055,-1000.0,0.00031815,120]
[329262489,1718203999081,-1000.0,0.00031815,30]
[329262490,1718203999117,-1000.0,0.00031815,120]
[329262491,1718203999150,-1000.0,0.00031815,60]
[329262492,1718203999180,-1000.0,0.00031815,60]
[329262493,1718203999208,-1113.60169633,0.00031815,120]
[329262494,1718203999237,-1000.0,0.00031815,30]
[329262495,1718203999264,-2000.0,0.00031815,30]
[329262496,1718203999291,-2000.0,0.00031815,30]
[329262497,1718203999319,-2000.0,0.00031815,30]
[329262498,1718203999346,-1000.0,0.00031815,60]
[329262499,1718203999373,-2000.0,0.00031815,30]
[329262500,1718203999398,-2000.0,0.00031815,30]
[329262501,1718203999425,-2000.0,0.00031815,30]
[329262502,1718203999452,-986.6,0.00031815,30]
[329262503,1718203999479,-1000.0,0.00031815,60]
[329262504,1718203999506,-1000.0,0.00031815,60]
[329262505,1718203999540,-1000.0,0.00031815,30]
[329262506,1718203999572,-1000.0,0.00031815,60]
[329262507,1718203999601,-1000.0,0.00031815,60]
[329262508,1718203999632,-1000.0,0.00031815,30]
[329262509,1718203999661,-1000.0,0.00031815,30]
[329262510,1718203999691,-1305.0051709,0.00031815,60]
[329262511,1718203999720,-1000.0,0.00031815,60]
[329262512,1718203999750,-1000.0,0.00031815,30]
[329262513,1718203999780,-1000.0,0.00031815,60]
[329262514,1718203999810,-1000.0,0.00031815,30]
[329262515,1718203999842,-1000.0,0.00031815,30]
[329262516,1718203999870,-858.21058216,0.00031815,30]
[329262517,1718203999898,-1000.0,0.00031815,30]
[329262518,1718203999929,-1000.0,0.00031815,30]
[329262519,1718203999959,-1000.0,0.00031815,60]
[329262520,1718203999987,-1000.0,0.00031815,60]
[329262521,1718204000018,-1000.0,0.00031815,30]
[329262522,1718204000045,-1000.0,0.00031815,60]
[329262523,1718204000070,-1000.0,0.00031815,30]
[329262524,1718204000097,-1000.0,0.00031815,30]
[329262525,1718204000144,-1000.0,0.00031815,30]
[329262526,1718204000171,-1000.0,0.00031815,30]
[329262527,1718204000199,-1000.0,0.00031815,30]
[329262528,1718204000228,-1000.0,0.00031815,60]
[329262529,1718204000254,-1000.0,0.00031815,30]
[329262530,1718204000280,-160.0,0.00031815,30]
[329262531,1718204000305,-1000.0,0.00031815,60]
[329262532,1718204000332,-1000.0,0.00031815,30]
[329262533,1718204000357,-1000.0,0.00031815,60]
[329262534,1718204000381,-1000.0,0.00031815,120]
[329262535,1718204000406,-1000.0,0.00031815,30]
[329262536,1718204000430,-1000.0,0.00031815,30]
[329262537,1718204000457,-1007.52912224,0.00031815,30]
[329262538,1718204000482,-1000.0,0.00031815,30]
[329262539,1718204000510,-1000.0,0.00031815,60]
[329262540,1718204000535,-1000.0,0.00031815,120]
[329262541,1718204000562,-1000.0,0.00031815,60]
[329262542,1718204000588,-1000.0,0.00031815,30]
[329262543,1718204000613,-1000.0,0.00031815,30]
[329262544,1718204000637,-1039.46,0.00031815,30]
[329262545,1718204000664,-1142.74,0.00031815,30]
[329262546,1718204000821,-233.34685552,0.00031815,30]
[329262547,1718204000849,-481.6681847,0.00031815,30]
[329262548,1718204000879,-999.999996,0.00031815,120]
[329262549,1718204000908,-525.31711583,0.00031815,60]
[329262550,1718204000937,-359.9869598,0.00031815,30]
[329262551,1718204000968,-832.038521,0.00031815,30]
[329262552,1718204000997,-839.89435685,0.00031815,120]
[329262553,1718204001028,-1426.76292833,0.00031815,30]
[329262554,1718204001057,-696.74292591,0.00031815,30]
[329262555,1718204001085,-2697.65564489,0.00031815,30]
[329262556,1718204001122,-187.89692834,0.00031815,120]
[329262557,1718204001150,-451.82332477,0.00031815,60]
[329262558,1718204001175,-1232.74764711,0.00031815,120]
[329262559,1718204001202,-572.02929063,0.00031815,30]
[329262560,1718204001227,-367.36314935,0.00031815,120]
[329262561,1718204001253,-1016.42497376,0.00031815,120]
[329262562,1718204001282,-814.98274506,0.00031815,30]
[329262563,1718204001309,-822.77790146,0.00031815,30]
[329262564,1718204001338,-657.89728419,0.00031815,30]
[329262565,1718204001365,-304.27041695,0.00031815,120]
[329262566,1718204001392,-619.91154445,0.00031815,120]
[329262567,1718204001418,-1152.13246204,0.00031815,60]
[329262568,1718204001445,-196.86939784,0.00031815,30]
[329262569,1718204001473,-2640.89601505,0.00031815,30]
[329262570,1718204001526,-915.57384331,0.00031815,30]
[329262571,1718204001557,-282.79513671,0.00031815,120]
[329262572,1718204001587,-939.6602095,0.00031815,120]
[329262573,1718204001618,-332.12336536,0.00031815,30]
[329262574,1718204001648,-984.77089334,0.00031815,30]
[329262575,1718204001676,-500.0,0.00031815,30]
[329262576,1718204001713,-463.75760284,0.00031815,120]
[329262577,1718204001744,-692.5859032,0.00031815,120]
[329262578,1718204001781,-1503.2093139,0.00031815,120]
[329262579,1718204001820,-565.39702894,0.00031815,120]
[329262580,1718204001851,-1052.44206432,0.00031815,120]
[329262581,1718204001884,-349.97781063,0.00031815,120]
[329262582,1718204001914,-186.68272029,0.00031815,120]
[329262583,1718204001942,-197.68066274,0.00031815,120]
[329262584,1718204001975,-565.73896705,0.00031815,120]
[329262585,1718204002002,-3265.0717552,0.00031815,120]
[329262586,1718204002042,-617.4958242,0.00031815,120]
[329262587,1718204002071,-348.3565015,0.00031815,120]
[329262588,1718204002098,-445.08921201,0.00031815,120]
[329262589,1718204002147,-842.17401224,0.00031815,30]
[329262590,1718204002176,-942.85853087,0.00031815,120]
[329262591,1718204002206,-192.49991478,0.00031815,30]
[329262592,1718204002234,-3497.62290117,0.00031815,120]
[329262593,1718204002263,-302.78002778,0.00031815,120]
[329262594,1718204002290,-949.8297375,0.00031815,30]
[329262595,1718204002319,-421.78778348,0.00031815,30]
[329262596,1718204002347,-816.18002493,0.00031815,120]
[329262597,1718204002374,-626.91997702,0.00031815,120]
[329262598,1718204002403,-274.95646758,0.00031815,120]
[329262599,1718204002431,-252.13660241,0.00031815,30]
[329262600,1718204002458,-3287.75044355,0.00031815,90]
[329262601,1718204002486,-2300.2141892,0.00031815,60]
[329262602,1718204002515,-499.4918651,0.00031815,120]
[329262603,1718204002544,-2185.82830243,0.00031815,30]
[329262604,1718204002573,-898.06425275,0.00031815,120]
[329262605,1718204002600,-1369.8697028,0.00031815,30]
[329262606,1718204002631,-2243.187102,0.00031815,120]
[329262607,1718204002662,-3149.04668809,0.00031815,30]
[329262608,1718204002692,-3447.24548557,0.00031815,120]
[329262609,1718204002720,-1388.26899939,0.00031815,30]
[329262610,1718204002747,-1090.0497398,0.00031815,30]
[329262611,1718204002781,-905.06864901,0.00031815,120]
[329262612,1718204002810,-285.4073748,0.00031815,30]
[329262613,1718204002839,-676.42767024,0.00031815,30]
[329262614,1718204002867,-168.29344157,0.00031815,120]
[329262615,1718204002894,-2068.90185321,0.00031815,30]
[329262616,1718204002923,-2524.87354862,0.00031815,120]
[329262617,1718204002951,-1044.42034318,0.00031815,120]
[329262618,1718204002983,-1651.32538208,0.00031815,120]
[329262619,1718204003014,-178.0,0.00031815,120]
[329262620,1718204003042,-1127.36932985,0.00031815,120]
[329262621,1718204003079,-205.87466831,0.00031815,120]
[329262622,1718204003122,-203.60773634,0.00031815,30]
[329262623,1718204003152,-769.50244085,0.00031815,31]
[329262624,1718204003183,-2000.0,0.00031815,30]